fUST/lending_fUST_20240731
["ID","MTS","AMOUNT","RATE_DAILY","PERIOD"]
[333717295,1722405045075,-584.45319799,0.00013698,2]
[333717296,1722405045085,-791.37,0.00013698,2]
[333717297,1722405045094,-500.0,0.00013698,2]
[333717298,1722405045104,-500.0,0.00013698,2]
[333717299,1722405045114,-500.0,0.00013698,2]
[333717300,1722405045125,-500.0,0.00013698,2]
[333717301,1722405045135,-500.0,0.00013698,2]
[333717302,1722405045146,-500.0,0.00013698,2]
[333717303,1722405045155,-500.0,0.00013698,2]
[333717304,1722405045164,-308.07521683,0.00013698,2]
[333717305,1722405045174,-500.0,0.00013698,2]
[333717306,1722405045184,-511.50020809,0.00013698,2]
[333717307,1722405045194,-500.0,0.00013698,2]
[333717308,1722405045204,-513.41327555,0.00013698,2]
[333717309,1722405045213,-794.65,0.00013698,2]
[333717310,1722405045223,-375.89863565,0.00013698,2]
[333717311,1722405045232,-1419.12,0.00013698,2]
[333717312,1722405045242,-500.0,0.00013698,2]
[333717313,1722405045252,-500.0,0.00013698,2]
[333717314,1722405045261,-228.77730767,0.00013698,2]
[333717315,1722405045271,-500.0,0.00013698,2]
[333717316,1722405045280,-500.0,0.00013698,2]
[333717317,1722405045290,-500.0,0.00013698,2]
[333717318,1722405045300,-503.81854357,0.00013698,2]
[333717319,1722405045310,-500.0,0.00013698,2]
[333717320,1722405045320,-504.56693852,0.00013698,2]
[333717321,1722405045330,-500.0,0.00013698,2]
[333717322,1722405045341,-500.0,0.00013698,2]
[333717323,1722405045547,-518.07381064,0.00013698,2]
[333717324,1722405045558,-500.0,0.00013698,2]
[333717325,1722405045569,-500.0,0.00013698,2]
[333717326,1722405045579,-500.0,0.00013698,2]
[333717327,1722405045590,-500.0,0.00013698,2]
[333717328,1722405045600,-500.0,0.00013698,2]
[333717329,1722405045609,-1039.56,0.00013698,2]
[333717330,1722405045619,-1789.09,0.00013698,2]
[333717331,1722405045628,-500.0,0.00013698,2]
[333717332,1722405045637,-195.67935358,0.00013698,2]
[333717333,1722405045647,-500.0,0.00013698,2]
[333717334,1722405045658,-500.0,0.00013698,2]
[333717335,1722405045669,-500.0,0.00013698,2]
[333717336,1722405045679,-1323.18,0.00013698,2]
[333717337,1722405045690,-512.7418302,0.00013698,2]
[333717338,1722405045701,-909.2,0.00013698,2]
[333717339,1722405045712,-500.0,0.00013698,2]
[333717340,1722405045722,-310.41910616,0.00013698,2]
[333717341,1722405045732,-500.0,0.00013698,2]
[333717342,1722405045742,-500.0,0.00013698,2]
[333717343,1722405045751,-505.0985982,0.00013698,2]
[333717344,1722405045760,-500.0,0.00013698,2]
[333717345,1722405045770,-500.0,0.00013698,2]
[333717346,1722405045779,-160.13921271,0.00013698,2]
[333717348,1722405045789,-867.45,0.00013698,2]
[333717349,1722405045801,-637.16,0.00013698,2]
[333717350,1722405045814,-500.0,0.00013698,2]
[333717352,1722405045824,-500.0,0.00013698,2]
[333717353,1722405045833,-500.0,0.00013698,2]
[333717354,1722405045842,-500.0,0.00013698,2]
[333717355,1722405045854,-601.06816802,0.00013698,2]
[333717357,1722405045863,-501.5464668,0.00013698,2]
[333717359,1722405045873,-500.0,0.00013698,2]
[333717361,1722405045885,-1001.93,0.00013698,2]
[333717362,1722405045896,-346.0941936,0.00013698,2]
[333717364,1722405045905,-502.82328424,0.00013698,2]
[333717366,1722405045915,-669.82,0.00013698,2]
[333717367,1722405045924,-500.0,0.00013698,2]
[333717368,1722405045933,-500.0,0.00013698,2]
[333717369,1722405045942,-500.0,0.00013698,2]
[333717371,1722405045951,-500.0,0.00013698,2]
[333717372,1722405045961,-500.0,0.00013698,2]
[333717373,1722405045971,-500.0,0.00013698,2]
[333717374,1722405045980,-504.79246944,0.00013698,2]
[333717375,1722405045989,-1130.35,0.00013698,2]
[333717376,1722405045998,-1378.81,0.00013698,2]
[333717377,1722405046007,-500.0,0.00013698,2]
[333717378,1722405046016,-513.21,0.00013698,2]
[333717379,1722405046026,-500.0,0.00013698,2]
[333717380,1722405046035,-500.0,0.00013698,2]
[333717381,1722405046045,-823.94,0.00013698,2]
[333717382,1722405046056,-500.0,0.00013698,2]
[333717384,1722405046066,-500.0,0.00013698,2]
[333717386,1722405046075,-1570.4,0.00013698,2]
[333717388,1722405046085,-500.0,0.00013698,2]
[333717390,1722405046095,-500.0,0.00013698,2]
[333717392,1722405046103,-425.64203063,0.00013698,2]
[333717394,1722405046113,-500.0,0.00013698,2]
[333717396,1722405046123,-500.0,0.00013698,2]
[333717397,1722405046135,-514.57702876,0.00013698,2]
[333717398,1722405046146,-500.0,0.00013698,2]
[333717399,1722405046155,-500.0,0.00013698,2]
[333717400,1722405046165,-451.27253128,0.00013698,2]
[333717401,1722405046174,-500.0,0.00013698,2]
[333717402,1722405046183,-500.0,0.00013698,2]
[333717403,1722405046193,-646.46,0.00013698,2]
[333717404,1722405046203,-500.0,0.00013698,2]
[333717405,1722405046213,-500.29701448,0.00013698,2]
[333717406,1722405046223,-500.0,0.00013698,2]
[333717407,1722405046233,-151.0,0.00013698,2]
[333717408,1722405046242,-151.0,0.00013698,2]
[333717409,1722405046254,-151.0,0.00013698,2]
[333717410,1722405046265,-151.0,0.00013698,2]
[333717411,1722405046275,-500.0,0.00013698,2]
[333717412,1722405046286,-500.0,0.00013698,2]
[333717413,1722405046298,-500.0,0.00013698,2]
[333717415,1722405046308,-500.0,0.00013698,2]
[333717417,1722405046317,-500.0,0.00013698,2]
[333717419,1722405046326,-500.0,0.00013698,2]
[333717421,1722405046335,-500.0,0.00013698,2]
[333717423,1722405046346,-1367.57,0.00013698,2]
[333717424,1722405046355,-500.0,0.00013698,2]
[333717425,1722405046366,-3338.02,0.00013698,2]
[333717426,1722405046376,-500.0,0.00013698,2]
[333717427,1722405046386,-500.0,0.00013698,2]
[333717428,1722405046398,-500.0,0.00013698,2]
[333717429,1722405046407,-572.97,0.00013698,2]
[333717430,1722405046417,-500.0,0.00013698,2]
[333717431,1722405046427,-500.0,0.00013698,2]
[333717432,1722405046436,-204.572387,0.00013698,2]
[333717433,1722405046446,-204.572387,0.00013698,2]
[333717434,1722405046456,-204.572387,0.00013698,2]
[333717435,1722405046466,-204.572387,0.00013698,2]
[333717436,1722405046476,-204.572387,0.00013698,2]
[333717437,1722405046487,-204.572387,0.00013698,2]
[333717438,1722405046498,-204.572387,0.00013698,2]
[333717439,1722405046512,-204.572381,0.00013698,2]
[333717440,1722405046523,-528.96204076,0.00013698,2]
[333717441,1722405046535,-1110.84,0.00013698,2]
[333717442,1722405046546,-151.0,0.00013698,2]
[333717443,1722405046556,-151.0,0.00013698,2]
[333717444,1722405046565,-500.0,0.00013698,2]
[333717445,1722405046575,-151.0,0.00013698,2]
[333717446,1722405046585,-151.0,0.00013698,2]
[333717447,1722405046594,-151.0,0.00013698,2]
[333717448,1722405046604,-500.0,0.00013698,2]
[333717449,1722405046614,-500.0,0.00013698,2]
[333717450,1722405046623,-545.42869578,0.00013698,2]
[333717451,1722405046636,-531.1016391,0.00013698,2]
[333717452,1722405046650,-500.0,0.00013698,2]
[333717453,1722405046661,-500.0,0.00013698,2]
[333717454,1722405046672,-500.0,0.00013698,2]
[333717455,1722405046681,-207.99367531,0.00013698,2]
[333717456,1722405046693,-504.30618245,0.00013698,2]
[333717457,1722405046705,-500.0,0.00013698,2]
[333717458,1722405046715,-500.0,0.00013698,2]
[333717459,1722405046724,-500.0,0.00013698,2]
[333717460,1722405046735,-500.0,0.00013698,2]
[333717461,1722405046747,-500.0,0.00013698,2]
[333717462,1722405046757,-500.0,0.00013698,2]
[333717463,1722405046767,-500.0,0.00013698,2]
[333717464,1722405046778,-550.69585905,0.00013698,2]
[333717465,1722405046788,-500.0,0.00013698,2]
[333717466,1722405046798,-229.6,0.00013698,2]
[333717467,1722405046814,-975.52,0.00013698,2]
[333717468,1722405046824,-500.0,0.00013698,2]
[333717469,1722405046834,-2034.92,0.00013698,2]
[333717470,1722405046844,-501.9122577,0.00013698,2]
[333717471,1722405046854,-500.0,0.00013698,2]
[333717472,1722405046863,-500.0,0.00013698,2]
[333717473,1722405046874,-650.52,0.00013698,2]
[333717474,1722405046887,-500.0,0.00013698,2]
[333717475,1722405046899,-500.0,0.00013698,2]
[333717476,1722405046908,-500.0,0.00013698,2]
[333717478,1722405046918,-500.0,0.00013698,2]
[333717480,1722405046927,-538.95614351,0.00013698,2]
[333717482,1722405046936,-500.0,0.00013698,2]
[333717483,1722405046946,-569.67,0.00013698,2]
[333717485,1722405046955,-500.0,0.00013698,2]
[333717486,1722405046964,-500.0,0.00013698,2]
[333717487,1722405046974,-500.0,0.00013698,2]
[333717488,1722405046983,-504.05901394,0.00013698,2]
[333717489,1722405046992,-1688.6,0.00013698,2]
[333717490,1722405047002,-500.0,0.00013698,2]
[333717491,1722405047011,-1088.11,0.00013698,2]
[333717492,1722405047021,-500.0,0.00013698,2]
[333717493,1722405047031,-500.0,0.00013698,2]
[333717494,1722405047040,-500.0,0.00013698,2]
[333717495,1722405047050,-151.0,0.00013698,2]
[333717496,1722405047060,-508.32190725,0.00013698,2]
[333717497,1722405047070,-281.893627,0.00013698,2]
[333717498,1722405047079,-1160.73,0.00013698,2]
[333717499,1722405047088,-515.75955367,0.00013698,2]
[333717500,1722405047098,-393.298211,0.00013698,2]
[333717501,1722405047107,-500.0,0.00013698,2]
[333717502,1722405047117,-393.298211,0.00013698,2]
[333717503,1722405047126,-393.298211,0.00013698,2]
[333717504,1722405047136,-393.298211,0.00013698,2]
[333717505,1722405047147,-393.298211,0.00013698,2]
[333717506,1722405047156,-393.298211,0.00013698,2]
[333717507,1722405047166,-393.298211,0.00013698,2]
[333717508,1722405047176,-393.298211,0.00013698,2]
[333717509,1722405047186,-393.298211,0.00013698,2]
[333717510,1722405047195,-393.298211,0.00013698,2]
[333717511,1722405047205,-393.298211,0.00013698,2]
[333717512,1722405047215,-393.298211,0.00013698,2]
[333717513,1722405047224,-393.298211,0.00013698,2]
[333717514,1722405047233,-393.298211,0.00013698,2]
[333717515,1722405047243,-393.298211,0.00013698,2]
[333717516,1722405047253,-500.0,0.00013698,2]
[333717517,1722405047262,-393.298211,0.00013698,2]
[333717518,1722405047271,-500.0,0.00013698,2]
[333717519,1722405047281,-262.13385108,0.00013698,2]
[333717520,1722405047291,-393.298211,0.00013698,2]
[333717521,1722405047301,-3742.2,0.00013698,2]
[333717522,1722405047310,-3742.2,0.00013698,2]
[333717523,1722405047320,-393.298211,0.00013698,2]
[333717524,1722405047329,-3742.2,0.00013698,2]
[333717525,1722405047339,-393.298211,0.00013698,2]
[333717526,1722405047348,-3742.2,0.00013698,2]
[333717527,1722405047358,-3742.2,0.00013698,2]
[333717528,1722405047367,-393.298219,0.00013698,2]
[333717529,1722405047377,-447.3499235,0.00013698,2]
[333717530,1722405047386,-3742.2,0.00013698,2]
[333717531,1722405047397,-3742.2,0.00013698,2]
[333717532,1722405047407,-3742.2,0.00013698,2]
[333717533,1722405047416,-3742.2,0.00013698,2]
[333717534,1722405047425,-265.789588,0.00013698,2]
[333717535,1722405047434,-3742.2,0.00013698,2]
[333717536,1722405047444,-3742.2,0.00013698,2]
[333717537,1722405047454,-3742.2,0.00013698,2]
[333717538,1722405047463,-3742.2,0.00013698,2]
[333717539,1722405047472,-3742.2,0.00013698,2]
[333717540,1722405047482,-500.0,0.00013698,2]
[333717541,1722405047492,-3742.2,0.00013698,2]
[333717542,1722405047501,-501.45785248,0.00013698,2]
[333717543,1722405047510,-3742.2,0.00013698,2]
[333717544,1722405047520,-3742.2,0.00013698,2]
[333717545,1722405047529,-3742.2,0.00013698,2]
[333717546,1722405047539,-3742.2,0.00013698,2]
[333717547,1722405047549,-500.0,0.00013698,2]
[333717548,1722405047558,-3742.2,0.00013698,2]
[333717549,1722405047567,-3742.2,0.00013698,2]
[333717550,1722405047577,-3742.2,0.00013698,2]
[333717551,1722405047587,-500.0,0.00013698,2]
[333717552,1722405047597,-3742.2,0.00013698,2]
[333717553,1722405047606,-3742.3034942,0.00013698,2]
[333717554,1722405047615,-500.0,0.00013698,2]
[333717555,1722405047625,-1363.99,0.00013698,2]
[333717556,1722405047634,-500.0,0.00013698,2]
[333717557,1722405047644,-500.0,0.00013698,2]
[333717558,1722405047654,-1122.63,0.00013698,2]
[333717559,1722405047663,-519.45948298,0.00013698,2]
[333717560,1722405047673,-517.14924383,0.00013698,2]
[333717561,1722405047682,-1672.56,0.00013698,2]
[333717562,1722405047691,-500.0,0.00013698,2]
[333717563,1722405047700,-500.0,0.00013698,2]
[333717564,1722405047710,-500.0,0.00013698,2]
[333717565,1722405047719,-500.0,0.00013698,2]
[333717566,1722405047729,-500.0,0.00013698,2]
[333717567,1722405047738,-500.0,0.00013698,2]
[333717568,1722405047747,-500.0,0.00013698,2]
[333717569,1722405047756,-500.0,0.00013698,2]
[333717570,1722405047766,-500.0,0.00013698,2]
[333717571,1722405047775,-300.80638286,0.00013698,2]
[333717572,1722405047784,-500.0,0.00013698,2]
[333717573,1722405047793,-347.7811101,0.00013698,2]
[333717574,1722405047804,-500.0,0.00013698,2]
[333717575,1722405047814,-929.07,0.00013698,2]
[333717576,1722405047823,-500.0,0.00013698,2]
[333717577,1722405047832,-200.30963606,0.00013698,2]
[333717578,1722405047843,-2027.27,0.00013698,2]
[333717579,1722405047852,-1018.64,0.00013698,2]
[333717580,1722405047861,-528.88437405,0.00013698,2]
[333717581,1722405047870,-151.0,0.00013698,2]
[333717582,1722405047882,-500.0,0.00013698,2]
[333717583,1722405047892,-4191.56,0.00013698,2]
[333717584,1722405047901,-513.78583575,0.00013698,2]
[333717585,1722405047911,-500.0,0.00013698,2]
[333717586,1722405047920,-512.88636566,0.00013698,2]
[333717587,1722405047929,-500.0,0.00013698,2]
[333717588,1722405047939,-1084.69,0.00013698,2]
[333717589,1722405047948,-1834.19,0.00013698,2]
[333717590,1722405047958,-520.29,0.00013698,2]
[333717591,1722405047967,-151.0,0.00013698,2]
[333717592,1722405047976,-255.295013,0.00013698,2]
[333717593,1722405047986,-509.18554936,0.00013698,2]
[333717594,1722405047995,-3248.92,0.00013698,2]
[333717595,1722405048004,-502.08110733,0.00013698,2]
[333717596,1722405048014,-511.66394604,0.00013698,2]
[333717597,1722405048023,-510.7673192,0.00013698,2]
[333717598,1722405048032,-500.0,0.00013698,2]
[333717599,1722405048041,-432.79649128,0.00013698,2]
[333717600,1722405048050,-500.0,0.00013698,2]
[333717601,1722405048060,-500.0,0.00013698,2]
[333717602,1722405048069,-151.0,0.00013698,2]
[333717603,1722405048079,-151.0,0.00013698,2]
[333717604,1722405048088,-1720.89,0.00013698,2]
[333717605,1722405048098,-151.0,0.00013698,2]
[333717606,1722405048107,-151.0,0.00013698,2]
[333717607,1722405048117,-151.0,0.00013698,2]
[333717608,1722405048126,-151.0,0.00013698,2]
[333717609,1722405048135,-367.683043,0.00013698,2]
[333717610,1722405048146,-500.0,0.00013698,2]
[333717611,1722405048155,-151.0,0.00013698,2]
[333717612,1722405048164,-367.683043,0.00013698,2]
[333717613,1722405048173,-151.0,0.00013698,2]
[333717614,1722405048182,-367.683043,0.00013698,2]
[333717615,1722405048192,-500.0,0.00013698,2]
[333717616,1722405048201,-367.683043,0.00013698,2]
[333717617,1722405048211,-367.683043,0.00013698,2]
[333717618,1722405048221,-151.0,0.00013698,2]
[333717619,1722405048230,-367.683043,0.00013698,2]
[333717620,1722405048239,-151.0,0.00013698,2]
[333717621,1722405048249,-500.0,0.00013698,2]
[333717622,1722405048258,-175.7729361,0.00013698,2]
[333717623,1722405048268,-616.27629492,0.00013698,2]
[333717624,1722405048278,-309.69132421,0.00013698,2]
[333717625,1722405048288,-500.0,0.00013698,2]
[333717626,1722405048297,-500.0,0.00013698,2]
[333717627,1722405048307,-367.683043,0.00013698,2]
[333717628,1722405048316,-151.0,0.00013698,2]
[333717629,1722405048326,-252.524426,0.00013698,2]
[333717630,1722405048337,-367.683043,0.00013698,2]
[333717631,1722405048347,-367.683043,0.00013698,2]
[333717632,1722405048357,-151.0,0.00013698,2]
[333717633,1722405048367,-367.683043,0.00013698,2]
[333717634,1722405048378,-151.0,0.00013698,2]
[333717635,1722405048388,-367.683043,0.00013698,2]
[333717636,1722405048406,-296.066174,0.00013698,2]
[333717637,1722405048417,-367.683043,0.00013698,2]
[333717638,1722405048429,-1963.07,0.00013698,2]
[333717639,1722405048440,-500.0,0.00013698,2]
[333717640,1722405048450,-367.683043,0.00013698,2]
[333717641,1722405048461,-367.683043,0.00013698,2]
[333717642,1722405048473,-505.52153762,0.00013698,2]
[333717643,1722405048483,-367.683043,0.00013698,2]
[333717644,1722405048493,-367.683043,0.00013698,2]
[333717645,1722405048503,-367.683043,0.00013698,2]
[333717646,1722405048514,-367.683043,0.00013698,2]
[333717648,1722405048524,-367.683043,0.00013698,2]
[333717649,1722405048534,-500.0,0.00013698,2]
[333717650,1722405048544,-367.683047,0.00013698,2]
[333717651,1722405048555,-506.84641108,0.00013698,2]
[333717652,1722405048567,-13622.09,0.00013698,2]
[333717653,1722405048577,-674.59,0.00013698,2]
[333717654,1722405048588,-500.0,0.00013698,2]
[333717655,1722405048598,-500.0,0.00013698,2]
[333717656,1722405048608,-500.0,0.00013698,2]
[333717657,1722405048618,-508.89401469,0.00013698,2]
[333717658,1722405048628,-500.0,0.00013698,2]
[333717659,1722405048639,-500.0,0.00013698,2]
[333717660,1722405048653,-151.0,0.00013698,2]
[333717661,1722405048663,-151.0,0.00013698,2]
[333717662,1722405048674,-151.0,0.00013698,2]
[333717663,1722405048684,-151.0,0.00013698,2]
[333717664,1722405048695,-151.0,0.00013698,2]
[333717665,1722405048705,-500.0,0.00013698,2]
[333717666,1722405048715,-151.0,0.00013698,2]
[333717667,1722405048725,-151.0,0.00013698,2]
[333717668,1722405048735,-777.89,0.00013698,2]
[333717669,1722405048745,-793.28,0.00013698,2]
[333717670,1722405048755,-151.0,0.00013698,2]
[333717671,1722405048765,-240.221402,0.00013698,2]
[333717672,1722405048774,-4817.65,0.00013698,2]
[333717673,1722405048784,-500.0,0.00013698,2]
[333717674,1722405048796,-507.60116534,0.00013698,2]
[333717675,1722405048809,-9957.18,0.00013698,2]
[333717676,1722405048819,-508.72622523,0.00013698,2]
[333717677,1722405048829,-151.0,0.00013698,2]
[333717678,1722405048839,-151.0,0.00013698,2]
[333717679,1722405048849,-487.03090995,0.00013698,2]
[333717680,1722405048859,-151.0,0.00013698,2]
[333717681,1722405048869,-151.0,0.00013698,2]
[333717682,1722405048879,-151.0,0.00013698,2]
[333717683,1722405048894,-2022.27,0.00013698,2]
[333717684,1722405048903,-271.390185,0.00013698,2]
[333717685,1722405048912,-500.0,0.00013698,2]
[333717686,1722405048921,-742.46,0.00013698,2]
[333717687,1722405048931,-430.23237342,0.00013698,2]
[333717688,1722405048943,-500.0,0.00013698,2]
[333717689,1722405048955,-500.0,0.00013698,2]
[333717690,1722405048965,-510.18011119,0.00013698,2]
[333717691,1722405048974,-500.0,0.00013698,2]
[333717692,1722405048984,-500.0,0.00013698,2]
[333717693,1722405048994,-629.43,0.00013698,2]
[333717694,1722405049004,-500.0,0.00013698,2]
[333717695,1722405049013,-500.0,0.00013698,2]
[333717696,1722405049023,-500.0,0.00013698,2]
[333717697,1722405049032,-508.23183099,0.00013698,2]
[333717698,1722405049041,-554.03821451,0.00013698,2]
[333717699,1722405049054,-500.0,0.00013698,2]
[333717700,1722405049065,-507.32879132,0.00013698,2]
[333717701,1722405049075,-1355.71,0.00013698,2]
[333717702,1722405049087,-801.97,0.00013698,2]
[333717703,1722405049096,-649.65,0.00013698,2]
[333717704,1722405049105,-500.0,0.00013698,2]
[333717705,1722405049114,-500.0,0.00013698,2]
[333717706,1722405049123,-815.63,0.00013698,2]
[333717707,1722405049133,-500.0,0.00013698,2]
[333717708,1722405049144,-533.37,0.00013698,2]
[333717709,1722405049154,-507.21561484,0.00013698,2]
[333717710,1722405049165,-509.2388791,0.00013698,2]
[333717711,1722405049174,-500.0,0.00013698,2]
[333717712,1722405049184,-500.0,0.00013698,2]
[333717713,1722405049194,-500.0,0.00013698,2]
[333717714,1722405049204,-500.0,0.00013698,2]
[333717715,1722405049215,-484.04148424,0.00013698,2]
[333717716,1722405049225,-500.0,0.00013698,2]
[333717717,1722405049234,-500.0,0.00013698,2]
[333717718,1722405049243,-500.0,0.00013698,2]
[333717719,1722405049252,-500.0,0.00013698,2]
[333717720,1722405049262,-1416.7,0.00013698,2]
[333717721,1722405049273,-500.0,0.00013698,2]
[333717722,1722405049283,-1491.92,0.00013698,2]
[333717723,1722405049292,-252.84267002,0.00013698,2]
[333717724,1722405049302,-844.12,0.00013698,2]
[333717725,1722405049311,-520.76660711,0.00013698,2]
[333717726,1722405049320,-11291.26,0.00013698,2]
[333717727,1722405049329,-506.53175724,0.00013698,2]
[333717728,1722405049339,-500.0,0.00013698,2]
[333717729,1722405049349,-500.0,0.00013698,2]
[333717730,1722405049360,-674.39,0.00013698,2]
[333717731,1722405049371,-500.0,0.00013698,2]
[333717732,1722405049383,-1207.72,0.00013698,2]
[333717733,1722405049396,-1841.75,0.00013698,2]
[333717734,1722405049407,-500.0,0.00013698,2]
[333717735,1722405049417,-500.0,0.00013698,2]
[333717736,1722405049427,-500.0,0.00013698,2]
[333717737,1722405049437,-500.0,0.00013698,2]
[333717738,1722405049447,-500.0,0.00013698,2]
[333717739,1722405049457,-500.0,0.00013698,2]
[333717740,1722405049468,-505.3236578,0.00013698,2]
[333717741,1722405049479,-500.0,0.00013698,2]
[333717742,1722405049489,-500.0,0.00013698,2]
[333717743,1722405049499,-500.0,0.00013698,2]
[333717744,1722405049509,-500.0,0.00013698,2]
[333717745,1722405049521,-502.44971749,0.00013698,2]
[333717746,1722405049531,-500.0,0.00013698,2]
[333717747,1722405049543,-542.48318813,0.00013698,2]
[333717748,1722405049554,-4079.63,0.00013698,2]
[333717749,1722405049565,-500.0,0.00013698,2]
[333717750,1722405049575,-1555.07,0.00013698,2]
[333717751,1722405049585,-610.32,0.00013698,2]
[333717752,1722405049595,-500.0,0.00013698,2]
[333717753,1722405049606,-501.31763326,0.00013698,2]
[333717754,1722405049616,-500.0,0.00013698,2]
[333717755,1722405049627,-500.0,0.00013698,2]
[333717756,1722405049636,-500.0,0.00013698,2]
[333717757,1722405049648,-500.0,0.00013698,2]
[333717758,1722405049661,-892.46,0.00013698,2]
[333717759,1722405049672,-4536.44,0.00013698,2]
[333717760,1722405049837,-503.70495135,0.00013698,2]
[333717761,1722405049850,-151.0,0.00013698,2]
[333717762,1722405049861,-500.0,0.00013698,2]
[333717763,1722405049871,-151.0,0.00013698,2]
[333717764,1722405049883,-152.111013,0.00013698,2]
[333717765,1722405049898,-500.0,0.00013698,2]
[333717766,1722405049910,-505.90947082,0.00013698,2]
[333717767,1722405049920,-500.0,0.00013698,2]
[333717768,1722405049931,-508.77997571,0.00013698,2]
[333717769,1722405049942,-500.0,0.00013698,2]
[333717770,1722405049953,-500.0,0.00013698,2]
[333717771,1722405049964,-500.0,0.00013698,2]
[333717772,1722405049976,-500.0,0.00013698,2]
[333717773,1722405049987,-500.0,0.00013698,2]
[333717774,1722405049998,-151.0,0.00013698,2]
[333717775,1722405050009,-151.0,0.00013698,2]
[333717776,1722405050020,-151.0,0.00013698,2]
[333717777,1722405050030,-151.0,0.00013698,2]
[333717778,1722405050040,-151.0,0.00013698,2]
[333717779,1722405050050,-151.0,0.00013698,2]
[333717780,1722405050061,-970.15,0.00013698,2]
[333717781,1722405050071,-151.0,0.00013698,2]
[333717782,1722405050080,-151.0,0.00013698,2]
[333717783,1722405050091,-151.0,0.00013698,2]
[333717784,1722405050100,-1597.2,0.00013698,2]
[333717785,1722405050111,-151.0,0.00013698,2]
[333717786,1722405050122,-151.0,0.00013698,2]
[333717787,1722405050131,-151.0,0.00013698,2]
[333717788,1722405050141,-151.0,0.00013698,2]
[333717789,1722405050157,-500.0,0.00013698,2]
[333717790,1722405050170,-293.814584,0.00013698,2]
[333717791,1722405050181,-495.66623935,0.00013698,2]
[333717792,1722405050192,-504.38876767,0.00013698,2]
[333717793,1722405050202,-1685.69,0.00013698,2]
[333717794,1722405050213,-7406.19,0.00013698,2]
[333717795,1722405050222,-873.57,0.00013698,2]
[333717796,1722405050231,-500.0,0.00013698,2]
[333717797,1722405050242,-736.85,0.00013698,2]
[333717798,1722405050253,-500.0,0.00013698,2]
[333717799,1722405050263,-500.0,0.00013698,2]
[333717800,1722405050274,-500.0,0.00013698,2]
[333717801,1722405050284,-500.0,0.00013698,2]
[333717802,1722405050294,-500.0,0.00013698,2]
[333717803,1722405050304,-151.0,0.00013698,2]
[333717804,1722405050314,-151.0,0.00013698,2]
[333717805,1722405050324,-151.0,0.00013698,2]
[333717806,1722405050335,-308.97168909,0.00013698,2]
[333717807,1722405050346,-500.0,0.00013698,2]
[333717808,1722405050356,-1675.65,0.00013698,2]
[333717809,1722405050367,-285.97051,0.00013698,2]
[333717810,1722405050378,-617.83174885,0.00013698,2]
[333717811,1722405050388,-978.88,0.00013698,2]
[333717812,1722405050403,-285.97051,0.00013698,2]
[333717813,1722405050414,-285.97051,0.00013698,2]
[333717814,1722405050425,-285.97051,0.00013698,2]
[333717815,1722405050435,-500.0,0.00013698,2]
[333717816,1722405050446,-285.97051,0.00013698,2]
[333717817,1722405050456,-285.97051,0.00013698,2]
[333717818,1722405050467,-285.97051,0.00013698,2]
[333717819,1722405050478,-285.97051,0.00013698,2]